[Event "*** SCC Grand Prix: Titled Tuesday Blitz"]
[Site "Chess.com"]
[Date "2020.07.14"]
[Round "5"]
[White "manitodeplomo"]
[Black "malandragem"]
[Result "0-1"]
[WhiteElo "2501"]
[BlackElo "2363"]
[TimeControl "180+1"]
[EndTime "10:55:26 PDT"]
[Termination "malandragem won by resignation"]

1. d4 {[%clk 0:03:00.9]} 1... Nf6 {[%clk 0:02:59.8]} 2. c4 {[%clk 0:03:00.2]}
2... g6 {[%clk 0:02:59.9]} 3. Nc3 {[%clk 0:02:59.9]} 3... Bg7 {[%clk 0:03:00]}
4. e4 {[%clk 0:02:59.1]} 4... d6 {[%clk 0:03:00.4]} 5. Be2 {[%clk 0:02:59.6]}
5... O-O {[%clk 0:03:00.2]} 6. Nf3 {[%clk 0:02:59.2]} 6... e5 {[%clk 0:03:00.2]}
7. d5 {[%clk 0:02:58.8]} 7... Na6 {[%clk 0:02:54.9]} 8. Bg5 {[%clk 0:02:58.4]}
8... h6 {[%clk 0:02:49.2]} 9. Bh4 {[%clk 0:02:58.3]} 9... Qe8 {[%clk 0:02:48.8]}
10. Nd2 {[%clk 0:02:57.5]} 10... Nh7 {[%clk 0:02:40.7]} 11. O-O {[%clk 0:02:56]}
11... h5 {[%clk 0:02:33]} 12. f3 {[%clk 0:02:54.7]} 12... Bh6 {[%clk 0:02:27.9]}
13. Rb1 {[%clk 0:02:47.4]} 13... c5 {[%clk 0:02:01.4]} 14. Nb5 {[%clk
0:02:37.7]} 14... Qd7 {[%clk 0:01:52.7]} 15. a3 {[%clk 0:02:37.2]} 15... b6
{[%clk 0:01:52.6]} 16. b4 {[%clk 0:02:36.5]} 16... Nc7 {[%clk 0:01:51.7]} 17.
Kh1 {[%clk 0:02:22.5]} 17... Bf4 {[%clk 0:01:45]} 18. bxc5 {[%clk 0:02:10.8]}
18... bxc5 {[%clk 0:01:41.8]} 19. Nb3 {[%clk 0:02:08]} 19... Ne8 {[%clk
0:01:41.6]} 20. Na5 {[%clk 0:02:06.5]} 20... g5 {[%clk 0:01:41.4]} 21. Bf2
{[%clk 0:02:01.7]} 21... h4 {[%clk 0:01:41.5]} 22. Nc6 {[%clk 0:01:56.6]} 22...
Kg7 {[%clk 0:01:32]} 23. Qa4 {[%clk 0:01:19.9]} 23... Rh8 {[%clk 0:01:23.3]} 24.
Qa5 {[%clk 0:00:51.6]} 24... Nhf6 {[%clk 0:01:22.3]} 25. Qd8 {[%clk 0:00:46]}
25... g4 {[%clk 0:01:14.6]} 26. Qxd7 {[%clk 0:00:38]} 26... Bxd7 {[%clk
0:01:15.5]} 27. Nbxa7 {[%clk 0:00:32]} 27... g3 {[%clk 0:01:05.6]} 28. Bg1
{[%clk 0:00:28.4]} 28... h3 {[%clk 0:00:53.7]} 29. hxg3 {[%clk 0:00:24]} 29...
Bxg3 {[%clk 0:00:54.6]} 30. Bf2 {[%clk 0:00:20.5]} 30... Nh5 {[%clk 0:00:53.9]}
31. Rg1 {[%clk 0:00:16.7]} 31... Bxf2 {[%clk 0:00:52.9]} 32. gxh3+ {[%clk
0:00:16.1]} 32... Bxg1 {[%clk 0:00:53.4]} 33. Rxg1+ {[%clk 0:00:15]} 33... Kf6
{[%clk 0:00:47.8]} 34. Bf1 {[%clk 0:00:15.9]} 0-1

[Event "*** SCC Grand Prix: Titled Tuesday Blitz"]
[Site "Chess.com"]
[Date "2020.07.14"]
[Round "5"]
[White "VladimirBugayev"]
[Black "Colombiano07"]
[Result "0-1"]
[WhiteElo "2112"]
[BlackElo "2323"]
[TimeControl "180+1"]
[EndTime "10:55:27 PDT"]
[Termination "Colombiano07 won on time"]

1. e4 {[%clk 0:03:00.9]} 1... c5 {[%clk 0:02:57.7]} 2. a3 {[%clk 0:03:00.1]}
2... g6 {[%clk 0:02:57]} 3. h4 {[%clk 0:02:59.5]} 3... h5 {[%clk 0:02:55.6]} 4.
Nc3 {[%clk 0:02:58.9]} 4... Bg7 {[%clk 0:02:55.8]} 5. Bc4 {[%clk 0:02:59.5]}
5... e6 {[%clk 0:02:55.5]} 6. d3 {[%clk 0:02:59.4]} 6... Ne7 {[%clk 0:02:55.7]}
7. Bg5 {[%clk 0:02:58.6]} 7... Nbc6 {[%clk 0:02:55.3]} 8. Nf3 {[%clk 0:02:39.1]}
8... d6 {[%clk 0:02:49.8]} 9. Qd2 {[%clk 0:02:38.4]} 9... Bd7 {[%clk 0:02:48.6]}
10. Qf4 {[%clk 0:02:34.2]} 10... Qa5 {[%clk 0:02:44.1]} 11. Bf6 {[%clk
0:02:19.9]} 11... Bh6 {[%clk 0:02:36.5]} 12. Ng5 {[%clk 0:02:17.5]} 12... e5
{[%clk 0:01:30.2]} 13. Bxf7+ {[%clk 0:01:05]} 13... Kf8 {[%clk 0:01:29]} 14. Qd2
{[%clk 0:00:45.5]} 14... Bg7 {[%clk 0:01:25.6]} 15. Bxg7+ {[%clk 0:00:40.3]}
15... Kxg7 {[%clk 0:01:26.5]} 16. Be6 {[%clk 0:00:37.6]} 16... Bxe6 {[%clk
0:01:19.7]} 17. Nxe6+ {[%clk 0:00:37.6]} 17... Kf6 {[%clk 0:01:20.6]} 18. Ng5
{[%clk 0:00:34.3]} 18... Kg7 {[%clk 0:01:21.1]} 19. O-O-O {[%clk 0:00:32.6]}
19... b5 {[%clk 0:01:17.6]} 20. f4 {[%clk 0:00:26.9]} 20... Nd4 {[%clk
0:01:16.1]} 21. fxe5 {[%clk 0:00:25.6]} 21... dxe5 {[%clk 0:01:14.2]} 22. Rdf1
{[%clk 0:00:25.4]} 22... Raf8 {[%clk 0:01:13.7]} 23. Nd5 {[%clk 0:00:19.2]}
23... Qxd2+ {[%clk 0:01:06.7]} 24. Kxd2 {[%clk 0:00:19.1]} 24... Nxd5 {[%clk
0:01:07.6]} 25. exd5 {[%clk 0:00:18.9]} 25... Rf5 {[%clk 0:01:08.5]} 26. c3
{[%clk 0:00:16.1]} 26... Nb3+ {[%clk 0:01:05.4]} 27. Kc2 {[%clk 0:00:16.2]}
27... c4 {[%clk 0:01:03.7]} 28. dxc4 {[%clk 0:00:13.1]} 28... bxc4 {[%clk
0:01:04.6]} 29. d6 {[%clk 0:00:11.2]} 29... Nc5 {[%clk 0:01:01.7]} 30. Rxf5
{[%clk 0:00:10]} 30... gxf5 {[%clk 0:01:02.1]} 31. Rd1 {[%clk 0:00:09.8]} 31...
Nd7 {[%clk 0:00:59.7]} 32. Nf3 {[%clk 0:00:04.9]} 32... Kf6 {[%clk 0:00:57.1]}
33. Rd5 {[%clk 0:00:01.1]} 33... Rg8 {[%clk 0:00:56.7]} 0-1

[Event "*** SCC Grand Prix: Titled Tuesday Blitz"]
[Site "Chess.com"]
[Date "2020.07.14"]
[Round "5"]
[White "mishikomchedlishvili"]
[Black "Natalya_Buksa"]
[Result "1-0"]
[WhiteElo "2762"]
[BlackElo "2538"]
[TimeControl "180+1"]
[EndTime "10:55:31 PDT"]
[Termination "mishikomchedlishvili won on time"]

1. d4 {[%clk 0:03:00.9]} 1... d5 {[%clk 0:02:47.4]} 2. Nf3 {[%clk 0:02:58.3]}
2... Nf6 {[%clk 0:02:46.3]} 3. g3 {[%clk 0:02:58.3]} 3... e6 {[%clk 0:02:45.7]}
4. Bg2 {[%clk 0:02:56.2]} 4... Be7 {[%clk 0:02:46.2]} 5. c4 {[%clk 0:02:55.6]}
5... O-O {[%clk 0:02:46]} 6. Qc2 {[%clk 0:02:53.4]} 6... dxc4 {[%clk 0:02:45.2]}
7. Qxc4 {[%clk 0:02:52.2]} 7... c6 {[%clk 0:02:45.7]} 8. Bg5 {[%clk 0:02:48.4]}
8... b5 {[%clk 0:02:45.7]} 9. Qc2 {[%clk 0:02:47.6]} 9... Bb7 {[%clk 0:02:45.7]}
10. Nbd2 {[%clk 0:02:47.1]} 10... Nbd7 {[%clk 0:02:42.4]} 11. Nb3 {[%clk
0:02:44.6]} 11... c5 {[%clk 0:02:39.7]} 12. dxc5 {[%clk 0:02:37.9]} 12... Rc8
{[%clk 0:02:38.9]} 13. Bxf6 {[%clk 0:02:35]} 13... gxf6 {[%clk 0:02:38.4]} 14.
Ng5 {[%clk 0:02:13.1]} 14... fxg5 {[%clk 0:02:17]} 15. Bxb7 {[%clk 0:02:12.4]}
15... Rc7 {[%clk 0:02:17.3]} 16. c6 {[%clk 0:02:12.1]} 16... Nb6 {[%clk
0:01:24.7]} 17. O-O {[%clk 0:02:07.9]} 17... Qd5 {[%clk 0:01:18.5]} 18. Rfd1
{[%clk 0:02:03.3]} 18... Qe5 {[%clk 0:01:18.7]} 19. Nd4 {[%clk 0:01:45.4]} 19...
h5 {[%clk 0:01:11.2]} 20. Nf3 {[%clk 0:01:40.3]} 20... Qg7 {[%clk 0:00:54.6]}
21. Qb3 {[%clk 0:01:36.5]} 21... b4 {[%clk 0:00:24.3]} 22. Nd4 {[%clk
0:01:31.9]} 22... Qe5 {[%clk 0:00:22.7]} 23. a4 {[%clk 0:01:17.7]} 23... bxa3
{[%clk 0:00:13.7]} 24. bxa3 {[%clk 0:01:16.2]} 24... Rb8 {[%clk 0:00:13.5]} 25.
Rab1 {[%clk 0:01:10.9]} 25... Rcxb7 {[%clk 0:00:12.8]} 26. cxb7 {[%clk
0:01:10.3]} 26... Rxb7 {[%clk 0:00:13.7]} 27. Qf3 {[%clk 0:01:07.2]} 27... Rc7
{[%clk 0:00:09.5]} 28. Nc6 {[%clk 0:01:06.6]} 28... Qf6 {[%clk 0:00:07.6]} 29.
Nxe7+ {[%clk 0:01:05.3]} 29... Qxe7 {[%clk 0:00:08]} 30. Qxh5 {[%clk 0:01:05.3]}
30... Kg7 {[%clk 0:00:07.4]} 31. Rbc1 {[%clk 0:01:04.4]} 31... Rxc1 {[%clk
0:00:05.2]} 32. Rxc1 {[%clk 0:01:04.1]} 32... Nd5 {[%clk 0:00:06.1]} 33. Rc4
{[%clk 0:01:02.1]} 33... e5 {[%clk 0:00:01.3]} 34. Rc8 {[%clk 0:00:59.8]} 1-0

[Event "*** SCC Grand Prix: Titled Tuesday Blitz"]
[Site "Chess.com"]
[Date "2020.07.14"]
[Round "5"]
[White "artichaud"]
[Black "anon569"]
[Result "1-0"]
[WhiteElo "2058"]
[BlackElo "2282"]
[TimeControl "180+1"]
[EndTime "10:55:34 PDT"]
[Termination "artichaud won on time"]

1. e4 {[%clk 0:02:59.4]} 1... c5 {[%clk 0:02:58.7]} 2. Nf3 {[%clk 0:02:58.9]}
2... d6 {[%clk 0:02:58.7]} 3. d4 {[%clk 0:02:58.7]} 3... cxd4 {[%clk 0:02:58.9]}
4. Nxd4 {[%clk 0:02:59.6]} 4... Nf6 {[%clk 0:02:59.4]} 5. Nc3 {[%clk 0:02:59.5]}
5... a6 {[%clk 0:02:59.5]} 6. Be3 {[%clk 0:02:57.9]} 6... e6 {[%clk 0:02:56.4]}
7. f3 {[%clk 0:02:56.2]} 7... Nbd7 {[%clk 0:02:48.2]} 8. Qd2 {[%clk 0:02:54.4]}
8... b5 {[%clk 0:02:45.3]} 9. g4 {[%clk 0:02:53.9]} 9... Nb6 {[%clk 0:02:42.5]}
10. Bd3 {[%clk 0:02:43.3]} 10... Bb7 {[%clk 0:02:40.5]} 11. g5 {[%clk 0:02:38]}
11... Nfd7 {[%clk 0:02:39.2]} 12. h4 {[%clk 0:02:27.2]} 12... Ne5 {[%clk
0:02:37.4]} 13. Qg2 {[%clk 0:02:21.6]} 13... Nbc4 {[%clk 0:02:03.4]} 14. Bc1
{[%clk 0:02:16.3]} 14... Qa5 {[%clk 0:01:09.9]} 15. Nb3 {[%clk 0:02:04.8]} 15...
Qb6 {[%clk 0:01:03.6]} 16. f4 {[%clk 0:01:59]} 16... Nc6 {[%clk 0:00:57.4]} 17.
a4 {[%clk 0:01:44.2]} 17... Rc8 {[%clk 0:00:52.8]} 18. axb5 {[%clk 0:01:41.4]}
18... axb5 {[%clk 0:00:53.2]} 19. h5 {[%clk 0:01:29.4]} 19... Be7 {[%clk
0:00:45.7]} 20. g6 {[%clk 0:00:39]} 20... hxg6 {[%clk 0:00:36.6]} 21. hxg6
{[%clk 0:00:38.4]} 1-0

[Event "*** SCC Grand Prix: Titled Tuesday Blitz"]
[Site "Chess.com"]
[Date "2020.07.14"]
[Round "5"]
[White "guillejr"]
[Black "orrbaverlekszarnyon"]
[Result "0-1"]
[WhiteElo "1962"]
[BlackElo "2153"]
[TimeControl "180+1"]
[EndTime "10:55:34 PDT"]
[Termination "orrbaverlekszarnyon won by checkmate"]

1. e4 {[%clk 0:03:00.9]} 1... c5 {[%clk 0:02:59.6]} 2. Nf3 {[%clk 0:03:00.1]}
2... d6 {[%clk 0:03:00]} 3. d4 {[%clk 0:02:59.6]} 3... cxd4 {[%clk 0:03:00.9]}
4. Nxd4 {[%clk 0:03:00.1]} 4... Nf6 {[%clk 0:03:01.4]} 5. Nc3 {[%clk 0:03:00.3]}
5... g6 {[%clk 0:03:01.8]} 6. g3 {[%clk 0:02:58.5]} 6... Bg7 {[%clk 0:03:01.1]}
7. Bg2 {[%clk 0:02:55.9]} 7... O-O {[%clk 0:03:01.1]} 8. O-O {[%clk 0:02:56.4]}
8... Nc6 {[%clk 0:03:01.2]} 9. Nde2 {[%clk 0:02:56.8]} 9... a6 {[%clk
0:02:56.9]} 10. a4 {[%clk 0:02:56.6]} 10... Rb8 {[%clk 0:02:56.3]} 11. h3 {[%clk
0:02:49.9]} 11... b5 {[%clk 0:02:55.6]} 12. axb5 {[%clk 0:02:50.1]} 12... axb5
{[%clk 0:02:56.5]} 13. Nd5 {[%clk 0:02:17.5]} 13... Nxd5 {[%clk 0:02:52.1]} 14.
exd5 {[%clk 0:02:18.4]} 14... Ne5 {[%clk 0:02:52.2]} 15. Kh2 {[%clk 0:01:47.8]}
15... b4 {[%clk 0:02:40.9]} 16. Nd4 {[%clk 0:01:43.5]} 16... Qb6 {[%clk
0:02:38]} 17. Ra2 {[%clk 0:01:28.9]} 17... h5 {[%clk 0:02:17]} 18. b3 {[%clk
0:01:26.9]} 18... h4 {[%clk 0:02:15.7]} 19. Be3 {[%clk 0:00:39.9]} 19... hxg3+
{[%clk 0:02:10.5]} 20. fxg3 {[%clk 0:00:38.5]} 20... Qb7 {[%clk 0:02:06.2]} 21.
Qd2 {[%clk 0:00:32.7]} 21... Bd7 {[%clk 0:01:59]} 22. Bg5 {[%clk 0:00:06.6]}
22... f6 {[%clk 0:01:50.8]} 23. Bf4 {[%clk 0:00:06.5]} 23... Rfc8 {[%clk
0:01:46]} 24. Bxe5 {[%clk 0:00:06.2]} 24... dxe5 {[%clk 0:01:46]} 25. Nc6 {[%clk
0:00:06.3]} 25... Rxc6 {[%clk 0:01:41.4]} 26. dxc6 {[%clk 0:00:05.2]} 26... Bxc6
{[%clk 0:01:42.3]} 27. Bxc6 {[%clk 0:00:04.5]} 27... Qxc6 {[%clk 0:01:43.2]} 28.
Rd1 {[%clk 0:00:04.6]} 28... Kh7 {[%clk 0:01:39.2]} 29. Qd5 {[%clk 0:00:04.2]}
29... Qb6 {[%clk 0:01:36.2]} 30. Qf3 {[%clk 0:00:02.8]} 30... Rc8 {[%clk
0:01:34]} 31. Rd2 {[%clk 0:00:02.5]} 31... Bh6 {[%clk 0:01:33.6]} 32. Re2 {[%clk
0:00:02]} 32... Rc3 {[%clk 0:01:31.9]} 33. Qf2 {[%clk 0:00:02.4]} 33... Qc6
{[%clk 0:01:28.8]} 34. Qg2 {[%clk 0:00:02]} 34... Qc5 {[%clk 0:01:26.2]} 35. Qf2
{[%clk 0:00:02]} 35... Be3 {[%clk 0:01:25.6]} 36. Qg2 {[%clk 0:00:02.6]} 36...
Kg7 {[%clk 0:01:23.7]} 37. Qf1 {[%clk 0:00:03.1]} 37... f5 {[%clk 0:01:21.7]}
38. Qd1 {[%clk 0:00:03.6]} 38... f4 {[%clk 0:01:20.2]} 39. Kg2 {[%clk
0:00:03.2]} 39... Qc6+ {[%clk 0:01:17.5]} 40. Kh2 {[%clk 0:00:03]} 40... Qf3
{[%clk 0:01:16.9]} 41. Re1 {[%clk 0:00:02.9]} 41... Qxg3+ {[%clk 0:01:16.1]} 42.
Kh1 {[%clk 0:00:02.6]} 42... Qxh3# {[%clk 0:01:16.3]} 0-1

[Event "*** SCC Grand Prix: Titled Tuesday Blitz"]
[Site "Chess.com"]
[Date "2020.07.14"]
[Round "5"]
[White "crescentmoon2411"]
[Black "SamuelGhimpu2003"]
[Result "1-0"]
[WhiteElo "2854"]
[BlackElo "2601"]
[TimeControl "180+1"]
[EndTime "10:55:35 PDT"]
[Termination "crescentmoon2411 won by resignation"]

1. c4 {[%clk 0:03:00.9]} 1... Nf6 {[%clk 0:02:58.9]} 2. Nc3 {[%clk 0:02:59.5]}
2... e6 {[%clk 0:02:58.7]} 3. e4 {[%clk 0:02:57.1]} 3... d5 {[%clk 0:02:58.7]}
4. e5 {[%clk 0:02:56.5]} 4... d4 {[%clk 0:02:59.2]} 5. exf6 {[%clk 0:02:55.8]}
5... dxc3 {[%clk 0:03:00.1]} 6. bxc3 {[%clk 0:02:55]} 6... Qxf6 {[%clk
0:03:00.6]} 7. Bd3 {[%clk 0:02:53.4]} 7... Nc6 {[%clk 0:02:56.8]} 8. Be4 {[%clk
0:02:49.6]} 8... e5 {[%clk 0:02:40.6]} 9. Nf3 {[%clk 0:02:48.5]} 9... Bd6 {[%clk
0:02:36.5]} 10. O-O {[%clk 0:02:43.7]} 10... O-O {[%clk 0:02:35.5]} 11. Re1
{[%clk 0:02:22.6]} 11... Rd8 {[%clk 0:02:30.5]} 12. Qc2 {[%clk 0:02:21.5]} 12...
h6 {[%clk 0:02:24.3]} 13. h3 {[%clk 0:02:11.2]} 13... Rb8 {[%clk 0:02:07.1]} 14.
d4 {[%clk 0:01:59.3]} 14... exd4 {[%clk 0:02:03.1]} 15. cxd4 {[%clk 0:01:53.9]}
15... Nxd4 {[%clk 0:01:51.1]} 16. Nxd4 {[%clk 0:01:53.6]} 16... Qxd4 {[%clk
0:01:52]} 17. Bb2 {[%clk 0:01:52.7]} 17... Qc5 {[%clk 0:01:45.5]} 18. Bd5 {[%clk
0:01:50.9]} 18... Bf8 {[%clk 0:01:25.3]} 19. Re5 {[%clk 0:01:41.6]} 19... Qd6
{[%clk 0:01:01.5]} 20. c5 {[%clk 0:01:37.7]} 20... Qf6 {[%clk 0:00:52.5]} 21.
Rae1 {[%clk 0:01:30.2]} 21... c6 {[%clk 0:00:45.2]} 22. Bb3 {[%clk 0:01:29.1]}
22... Bd7 {[%clk 0:00:29.9]} 23. Rh5 {[%clk 0:01:03.7]} 23... Qf4 {[%clk
0:00:20.5]} 24. Be5 {[%clk 0:00:56.1]} 24... Qb4 {[%clk 0:00:19.2]} 25. Re4
{[%clk 0:00:54.3]} 25... Qa5 {[%clk 0:00:06.9]} 26. Rxh6 {[%clk 0:00:44.5]}
26... Bf5 {[%clk 0:00:02.3]} 27. Rh8+ {[%clk 0:00:44.1]} 27... Kxh8 {[%clk
0:00:02.5]} 28. Rh4+ {[%clk 0:00:44.1]} 28... Kg8 {[%clk 0:00:03]} 29. Qxf5
{[%clk 0:00:44.2]} 29... Qe1+ {[%clk 0:00:02]} 30. Kh2 {[%clk 0:00:44.3]} 30...
Rd6 {[%clk 0:00:02.4]} 1-0

[Event "*** SCC Grand Prix: Titled Tuesday Blitz"]
[Site "Chess.com"]
[Date "2020.07.14"]
[Round "5"]
[White "eightbyeightchess"]
[Black "Kildepiotr"]
[Result "0-1"]
[WhiteElo "2406"]
[BlackElo "2594"]
[TimeControl "180+1"]
[EndTime "10:55:35 PDT"]
[Termination "Kildepiotr won on time"]

1. e4 {[%clk 0:03:00.9]} 1... g6 {[%clk 0:02:59.9]} 2. d4 {[%clk 0:03:00.5]}
2... Bg7 {[%clk 0:03:00.4]} 3. Nc3 {[%clk 0:03:00.6]} 3... c6 {[%clk 0:03:00.9]}
4. Be3 {[%clk 0:02:59.9]} 4... d5 {[%clk 0:03:00.6]} 5. Qd2 {[%clk 0:02:55.9]}
5... dxe4 {[%clk 0:02:57.8]} 6. Nxe4 {[%clk 0:02:56.8]} 6... Nf6 {[%clk
0:02:57.7]} 7. Nxf6+ {[%clk 0:02:54.1]} 7... Bxf6 {[%clk 0:02:58.6]} 8. Nf3
{[%clk 0:02:51.6]} 8... Be6 {[%clk 0:02:51.6]} 9. Bg5 {[%clk 0:02:46]} 9... Nd7
{[%clk 0:02:46.2]} 10. h3 {[%clk 0:02:24.3]} 10... Qb6 {[%clk 0:02:40.8]} 11. c3
{[%clk 0:02:21.1]} 11... O-O-O {[%clk 0:02:26.7]} 12. a4 {[%clk 0:02:02.2]}
12... c5 {[%clk 0:02:21.6]} 13. d5 {[%clk 0:01:38.8]} 13... Ne5 {[%clk 0:02:21]}
14. Nxe5 {[%clk 0:01:14.8]} 14... Bxe5 {[%clk 0:02:20.5]} 15. Bc4 {[%clk
0:01:08.5]} 15... f6 {[%clk 0:01:55.1]} 16. Be3 {[%clk 0:01:02.1]} 16... Bxd5
{[%clk 0:01:49.2]} 17. Bxd5 {[%clk 0:01:01.9]} 17... e6 {[%clk 0:01:49.3]} 18.
Bxe6+ {[%clk 0:00:57.1]} 18... Qxe6 {[%clk 0:01:48.3]} 19. Qe2 {[%clk
0:00:57.5]} 19... Qc6 {[%clk 0:01:31.2]} 20. O-O {[%clk 0:00:56.1]} 20... Rd7
{[%clk 0:01:25.8]} 21. b4 {[%clk 0:00:55.6]} 21... Bxc3 {[%clk 0:01:16.6]} 22.
b5 {[%clk 0:00:41.9]} 22... Qe4 {[%clk 0:01:16]} 23. Rac1 {[%clk 0:00:40.6]}
23... Bd4 {[%clk 0:01:12.9]} 24. a5 {[%clk 0:00:23.6]} 24... Kb8 {[%clk
0:01:03.2]} 25. Qc4 {[%clk 0:00:08.5]} 25... Rc8 {[%clk 0:00:52.5]} 26. Rfe1
{[%clk 0:00:07.2]} 26... f5 {[%clk 0:00:40.9]} 27. b6 {[%clk 0:00:05.3]} 27...
Bxe3 {[%clk 0:00:35.9]} 0-1

[Event "*** SCC Grand Prix: Titled Tuesday Blitz"]
[Site "Chess.com"]
[Date "2020.07.14"]
[Round "5"]
[White "Tolya2"]
[Black "blitzking1729"]
[Result "0-1"]
[WhiteElo "2393"]
[BlackElo "2575"]
[TimeControl "180+1"]
[EndTime "10:55:35 PDT"]
[Termination "blitzking1729 won by resignation"]

1. Nf3 {[%clk 0:03:00.9]} 1... d5 {[%clk 0:02:57.8]} 2. d4 {[%clk 0:02:59.5]}
2... c5 {[%clk 0:02:57.5]} 3. c4 {[%clk 0:02:59.3]} 3... e6 {[%clk 0:02:54.9]}
4. e3 {[%clk 0:02:58.3]} 4... Nf6 {[%clk 0:02:54]} 5. a3 {[%clk 0:02:58.3]} 5...
a6 {[%clk 0:02:46.7]} 6. dxc5 {[%clk 0:02:57.6]} 6... Bxc5 {[%clk 0:02:44.8]} 7.
b4 {[%clk 0:02:57.6]} 7... Be7 {[%clk 0:02:42.5]} 8. Bb2 {[%clk 0:02:57.5]} 8...
O-O {[%clk 0:02:36]} 9. Nbd2 {[%clk 0:02:57.1]} 9... Nc6 {[%clk 0:02:34.5]} 10.
Be2 {[%clk 0:02:56.5]} 10... dxc4 {[%clk 0:02:33.8]} 11. Nxc4 {[%clk 0:02:55.3]}
11... b5 {[%clk 0:02:31.5]} 12. Nce5 {[%clk 0:02:51.9]} 12... Bb7 {[%clk
0:02:28.6]} 13. O-O {[%clk 0:02:49.9]} 13... Rc8 {[%clk 0:02:23.8]} 14. Qxd8
{[%clk 0:02:48.7]} 14... Rfxd8 {[%clk 0:02:23.3]} 15. Rac1 {[%clk 0:02:42.8]}
15... Nxe5 {[%clk 0:02:22.6]} 16. Bxe5 {[%clk 0:02:40.3]} 16... Ne4 {[%clk
0:02:19.1]} 17. Bc7 {[%clk 0:02:33.5]} 17... Rd7 {[%clk 0:02:04.8]} 18. Be5
{[%clk 0:02:33]} 18... Rdd8 {[%clk 0:02:00.9]} 19. Bc7 {[%clk 0:02:31.7]} 19...
Re8 {[%clk 0:01:55.9]} 20. Be5 {[%clk 0:02:30.3]} 20... Bd5 {[%clk 0:01:55.5]}
21. Bb2 {[%clk 0:02:26.9]} 21... Bf6 {[%clk 0:01:52.1]} 22. Bxf6 {[%clk
0:02:23.4]} 22... gxf6 {[%clk 0:01:51.3]} 23. Nd4 {[%clk 0:02:23.2]} 23... Nd6
{[%clk 0:01:43.4]} 24. Bf3 {[%clk 0:02:17.9]} 24... Bxf3 {[%clk 0:01:41.3]} 25.
gxf3 {[%clk 0:02:17.2]} 25... Nc4 {[%clk 0:01:37.2]} 26. Rc3 {[%clk 0:02:13.2]}
26... Kg7 {[%clk 0:01:23.8]} 27. Rfc1 {[%clk 0:02:12.1]} 27... f5 {[%clk
0:01:15.2]} 28. a4 {[%clk 0:02:11.8]} 28... Rb8 {[%clk 0:01:01.7]} 29. axb5
{[%clk 0:02:06.2]} 29... axb5 {[%clk 0:01:01.5]} 30. Nxb5 {[%clk 0:02:05.9]}
30... Ne5 {[%clk 0:00:55.4]} 31. Nd4 {[%clk 0:01:58.7]} 31... Rxb4 {[%clk
0:00:54.4]} 32. Kg2 {[%clk 0:01:58.7]} 32... f4 {[%clk 0:00:52.5]} 33. Rb3
{[%clk 0:01:51.8]} 33... Rxb3 {[%clk 0:00:50.8]} 34. Nxb3 {[%clk 0:01:50.7]}
34... fxe3 {[%clk 0:00:50.9]} 35. fxe3 {[%clk 0:01:50.5]} 35... Rb8 {[%clk
0:00:51.3]} 36. Rc3 {[%clk 0:01:47.5]} 36... Ra8 {[%clk 0:00:48.1]} 37. f4
{[%clk 0:01:46.3]} 37... Ra2+ {[%clk 0:00:47.3]} 38. Kg3 {[%clk 0:01:46.2]}
38... Nd7 {[%clk 0:00:44.7]} 39. Nd4 {[%clk 0:01:45.7]} 39... Nf6 {[%clk
0:00:43.9]} 40. Rc7 {[%clk 0:01:45.2]} 40... Kg6 {[%clk 0:00:41.3]} 41. Nc6
{[%clk 0:01:36.5]} 41... Ne4+ {[%clk 0:00:34.9]} 42. Kf3 {[%clk 0:01:29.1]}
42... f5 {[%clk 0:00:30]} 43. Ne5+ {[%clk 0:01:28.5]} 43... Kh6 {[%clk
0:00:29.4]} 44. Nf7+ {[%clk 0:01:23.4]} 44... Kh5 {[%clk 0:00:28.8]} 0-1

[Event "*** SCC Grand Prix: Titled Tuesday Blitz"]
[Site "Chess.com"]
[Date "2020.07.14"]
[Round "5"]
[White "vova-79"]
[Black "Roza_Idrisova"]
[Result "1-0"]
[WhiteElo "2470"]
[BlackElo "2248"]
[TimeControl "180+1"]
[EndTime "10:55:35 PDT"]
[Termination "vova-79 won by resignation"]

1. d4 {[%clk 0:03:00.9]} 1... d5 {[%clk 0:02:58.7]} 2. c4 {[%clk 0:03:00.7]}
2... c6 {[%clk 0:02:58.9]} 3. Nc3 {[%clk 0:03:00.7]} 3... Nf6 {[%clk 0:02:58.7]}
4. e3 {[%clk 0:03:00.8]} 4... a6 {[%clk 0:02:59]} 5. Qc2 {[%clk 0:02:59.3]} 5...
g6 {[%clk 0:02:57.2]} 6. Bd3 {[%clk 0:02:56.6]} 6... Bg7 {[%clk 0:02:57.3]} 7.
Nf3 {[%clk 0:02:54.5]} 7... O-O {[%clk 0:02:57]} 8. b3 {[%clk 0:02:52.7]} 8...
b5 {[%clk 0:02:55.9]} 9. O-O {[%clk 0:02:51.9]} 9... Nbd7 {[%clk 0:02:50.2]} 10.
Bb2 {[%clk 0:02:49.9]} 10... Bb7 {[%clk 0:02:50.1]} 11. Rad1 {[%clk 0:02:40.5]}
11... Rc8 {[%clk 0:02:49.4]} 12. e4 {[%clk 0:02:38.9]} 12... b4 {[%clk
0:02:48.4]} 13. e5 {[%clk 0:02:34]} 13... bxc3 {[%clk 0:02:44.9]} 14. exf6
{[%clk 0:02:33.7]} 14... Bxf6 {[%clk 0:02:42.7]} 15. Bxc3 {[%clk 0:02:32.1]}
15... dxc4 {[%clk 0:02:38.4]} 16. bxc4 {[%clk 0:02:24.2]} 16... Qc7 {[%clk
0:02:37.1]} 17. Rfe1 {[%clk 0:02:21.1]} 17... c5 {[%clk 0:02:36.2]} 18. d5
{[%clk 0:02:20.6]} 18... Rfe8 {[%clk 0:02:31.4]} 19. Re3 {[%clk 0:02:12.9]}
19... Bxc3 {[%clk 0:02:28.8]} 20. Qxc3 {[%clk 0:02:12.5]} 20... Qd6 {[%clk
0:02:26]} 21. Bc2 {[%clk 0:02:03.7]} 21... Nf8 {[%clk 0:02:25.4]} 22. Rde1
{[%clk 0:01:59.8]} 22... e6 {[%clk 0:02:22.3]} 23. Ba4 {[%clk 0:01:50.5]} 23...
Red8 {[%clk 0:02:20.7]} 24. dxe6 {[%clk 0:01:49.1]} 24... Nxe6 {[%clk
0:02:17.6]} 25. Ne5 {[%clk 0:01:38.4]} 25... Nd4 {[%clk 0:02:12.3]} 26. h4
{[%clk 0:01:25.5]} 26... Nf5 {[%clk 0:01:59.7]} 27. Rd1 {[%clk 0:01:00.6]} 27...
Qf6 {[%clk 0:01:55.7]} 28. Rxd8+ {[%clk 0:00:48.8]} 28... Rxd8 {[%clk
0:01:53.6]} 29. Nd7 {[%clk 0:00:48.8]} 29... Qxc3 {[%clk 0:01:43.6]} 30. Rxc3
{[%clk 0:00:49.7]} 30... Nxh4 {[%clk 0:01:39.6]} 31. Nxc5 {[%clk 0:00:43.9]}
31... Bc8 {[%clk 0:01:36.7]} 32. g3 {[%clk 0:00:42.4]} 32... Nf5 {[%clk
0:01:35.3]} 33. Ne4 {[%clk 0:00:39.9]} 33... Kg7 {[%clk 0:01:33.8]} 34. c5
{[%clk 0:00:39.6]} 34... Nd4 {[%clk 0:01:32.8]} 35. Kg2 {[%clk 0:00:32]} 35...
Bd7 {[%clk 0:01:26]} 36. c6 {[%clk 0:00:28.2]} 36... Bf5 {[%clk 0:01:22.3]} 37.
c7 {[%clk 0:00:27.8]} 37... Rf8 {[%clk 0:01:15]} 38. Nd6 {[%clk 0:00:26.6]}
38... Bc8 {[%clk 0:00:59.4]} 39. Nxc8 {[%clk 0:00:24]} 39... Rxc8 {[%clk
0:00:59.2]} 40. Bd7 {[%clk 0:00:24]} 40... Nb5 {[%clk 0:00:56]} 41. Bxc8 {[%clk
0:00:23.7]} 41... Nxc3 {[%clk 0:00:55.8]} 42. Bxa6 {[%clk 0:00:23.4]} 1-0